fUSD/lending_fUSD_20250110
["ID","MTS","AMOUNT","RATE_DAILY","PERIOD"]
[348431244,1736526646469,-1242.969586,9.397e-05,2]
[348431246,1736526646478,-877.49,9.397e-05,2]
[348431248,1736526646489,-3881.78,9.397e-05,2]
[348431250,1736526646498,-627.41,9.397e-05,2]
[348431252,1736526646508,-947.62,9.397e-05,2]
[348431253,1736526646517,-749.46,9.397e-05,2]
[348431254,1736526646527,-720.66,9.397e-05,2]
[348431255,1736526646537,-516.68,9.397e-05,2]
[348431256,1736526646547,-535.15,9.397e-05,2]
[348431257,1736526646557,-1476.38,9.397e-05,2]
[348431258,1736526646567,-638.57,9.397e-05,2]
[348431259,1736526646579,-598.07,9.397e-05,2]
[348431260,1736526646588,-722.91,9.397e-05,2]
[348431261,1736526646597,-585.93,9.397e-05,2]
[348431262,1736526646607,-1046.0,9.397e-05,2]
[348431263,1736526646618,-500.0,9.397e-05,2]
[348431264,1736526646632,-664.5,9.397e-05,2]
[348431265,1736526646642,-3409.85,9.397e-05,2]
[348431266,1736526646653,-980.89,9.397e-05,2]
[348431267,1736526646664,-1013.14,9.397e-05,2]
[348431269,1736526646673,-834.53,9.397e-05,2]
[348431270,1736526646683,-2944.52,9.397e-05,2]
[348431272,1736526646692,-834.57,9.397e-05,2]
[348431274,1736526646703,-4035.09,9.397e-05,2]
[348431277,1736526646713,-572.76,9.397e-05,2]
[348431279,1736526646723,-1109.03,9.397e-05,2]
[348431281,1736526646733,-500.0,9.397e-05,2]
[348431283,1736526646742,-500.0,9.397e-05,2]
[348431285,1736526646752,-531.36,9.397e-05,2]
[348431287,1736526646761,-671.78,9.397e-05,2]
[348431289,1736526646770,-3389.47,9.397e-05,2]
[348431291,1736526646780,-500.0,9.397e-05,2]
[348431293,1736526646789,-3432.27,9.397e-05,2]
[348431295,1736526646799,-500.0,9.398e-05,2]
[348431297,1736526646810,-423.52410409,9.398e-05,2]
[348431299,1736526646820,-500.0,9.398e-05,2]
[348431301,1736526646830,-603.28936929,9.398e-05,2]
[348431303,1736526646840,-630.35,9.398e-05,2]
[348431305,1736526646850,-234.15849769,9.398e-05,2]
[348431307,1736526646859,-500.0,9.398e-05,2]
[348431309,1736526646869,-500.0,9.398e-05,2]
[348431311,1736526646884,-500.0,9.398e-05,2]
[348431313,1736526646894,-500.0,9.398e-05,2]
[348431315,1736526646903,-500.0,9.398e-05,2]
[348431317,1736526646912,-500.0,9.398e-05,2]
[348431319,1736526646922,-542.51,9.398e-05,2]
[348431321,1736526646931,-888.23,9.398e-05,2]
[348431323,1736526646942,-599.78,9.398e-05,2]
[348431325,1736526646952,-500.0,9.398e-05,2]
[348431327,1736526646962,-500.29,9.398e-05,2]
[348431329,1736526646972,-500.0,9.398e-05,2]
[348431331,1736526646982,-1058.61,9.398e-05,2]
[348431333,1736526646992,-700.44,9.398e-05,2]
[348431335,1736526647002,-905.71,9.398e-05,2]
[348431337,1736526647012,-500.0,9.398e-05,2]
[348431339,1736526647022,-1172.36,9.398e-05,2]
[348431341,1736526647031,-500.0,9.398e-05,2]
[348431343,1736526647041,-611.14,9.398e-05,2]
[348431344,1736526647051,-500.0,9.398e-05,2]
[348431347,1736526647061,-780.83,9.398e-05,2]
[348431348,1736526647071,-500.0,9.398e-05,2]
[348431350,1736526647080,-500.0,9.398e-05,2]
[348431352,1736526647090,-1546.73,9.398e-05,2]
[348431354,1736526647100,-420.0,9.463e-05,2]
[348431364,1736526647189,-255.0,9.498e-05,2]
[348431366,1736526647200,-500.0,9.556e-05,2]
[348431368,1736526647211,-500.79562635,9.556e-05,2]
[348431370,1736526647220,-500.0,9.557e-05,2]
[348431372,1736526647229,-500.0,9.557e-05,2]
[348431374,1736526647239,-500.0,9.557e-05,2]
[348431376,1736526647249,-500.0,9.557e-05,2]
[348431378,1736526647258,-500.0,9.557e-05,2]
[348431380,1736526647267,-1284.08,9.557e-05,2]
[348431382,1736526647276,-500.0,9.557e-05,2]
[348431384,1736526647286,-500.0,9.557e-05,2]
[348431386,1736526647295,-500.0,9.557e-05,2]
[348431388,1736526647304,-500.0,9.557e-05,2]
[348431390,1736526647314,-500.0,9.557e-05,2]
[348431392,1736526647323,-500.0,9.557e-05,2]
[348431394,1736526647333,-500.0,9.557e-05,2]
[348431396,1736526647343,-500.0,9.557e-05,2]
[348431398,1736526647352,-500.0,9.557e-05,2]
[348431400,1736526647361,-1209.53,9.557e-05,2]
[348431402,1736526647371,-500.0,9.557e-05,2]
[348431404,1736526647383,-500.0,9.557e-05,2]
[348431406,1736526647392,-500.0,9.557e-05,2]
[348431408,1736526647402,-500.0,9.557e-05,2]
[348431410,1736526647411,-821.67,9.557e-05,2]
[348431412,1736526647421,-905.74,9.557e-05,2]
[348431414,1736526647430,-500.0,9.557e-05,2]
[348431416,1736526647439,-1093.48,9.557e-05,2]
[348431418,1736526647448,-1575.75,9.557e-05,2]
[348431420,1736526647458,-500.0,9.557e-05,2]
[348431422,1736526647467,-1869.87,9.557e-05,2]
[348431424,1736526647476,-500.0,9.557e-05,2]
[348431426,1736526647485,-1761.29,9.557e-05,2]
[348431428,1736526647495,-500.0,9.557e-05,2]
[348431430,1736526647505,-377.82074006,9.557e-05,2]
[348431432,1736526647515,-500.0,9.557e-05,2]
[348431434,1736526647525,-4066.7,9.557e-05,2]
[348431436,1736526647535,-7420.1,9.557e-05,2]
[348431438,1736526647544,-564.67,9.557e-05,2]
[348431440,1736526647553,-614.37,9.557e-05,2]
[348431442,1736526647563,-755.52,9.557e-05,2]
[348431444,1736526647576,-500.0,9.557e-05,2]
[348431446,1736526647586,-500.0,9.557e-05,2]
[348431448,1736526647595,-500.0,9.557e-05,2]
[348431450,1736526647604,-950.25,9.557e-05,2]
[348431452,1736526647613,-1213.58,9.557e-05,2]
[348431454,1736526647623,-958.92,9.557e-05,2]
[348431455,1736526647635,-500.0,9.557e-05,2]
[348431456,1736526647644,-550.55,9.557e-05,2]
[348431457,1736526647654,-2093.46,9.557e-05,2]
[348431458,1736526647663,-500.0,9.557e-05,2]
[348431459,1736526647672,-500.0,9.557e-05,2]
[348431460,1736526647681,-1566.21,9.557e-05,2]
[348431461,1736526647691,-856.13,9.557e-05,2]
[348431462,1736526647700,-889.19,9.557e-05,2]
[348431463,1736526647709,-1060.71,9.557e-05,2]
[348431464,1736526647718,-1309.98,9.557e-05,2]
[348431465,1736526647727,-1156.72,9.557e-05,2]
[348431466,1736526647736,-500.0,9.557e-05,2]
[348431467,1736526647745,-500.0,9.557e-05,2]
[348431468,1736526647754,-500.0,9.558e-05,2]
[348431469,1736526647763,-632.36,9.558e-05,2]
[348431470,1736526647772,-721.23,9.558e-05,2]
[348431471,1736526647782,-616.81,9.558e-05,2]
[348431472,1736526647791,-500.0,9.558e-05,2]
[348431473,1736526647800,-684.39,9.558e-05,2]
[348431474,1736526647810,-164.58964276,9.558e-05,2]
[348431475,1736526647819,-500.0,9.558e-05,2]
[348431476,1736526647828,-500.0,9.558e-05,2]
[348431477,1736526647838,-572.92,9.558e-05,2]
[348431478,1736526647848,-536.27629502,9.558e-05,2]
[348431479,1736526647857,-500.0,9.558e-05,2]
[348431480,1736526647867,-722.0,9.558e-05,2]
[348431481,1736526647878,-500.0,9.558e-05,2]
[348431482,1736526647888,-893.13,9.558e-05,2]
[348431483,1736526647898,-500.0,9.558e-05,2]
[348431484,1736526647907,-626.44,9.558e-05,2]
[348431485,1736526647917,-709.15,9.558e-05,2]
[348431486,1736526647926,-500.0,9.558e-05,2]
[348431487,1736526647935,-621.71,9.558e-05,2]
[348431488,1736526647945,-500.0,9.558e-05,2]
[348431489,1736526647954,-500.0,9.558e-05,2]
[348431490,1736526647963,-500.0,9.558e-05,2]
[348431491,1736526647972,-500.0,9.558e-05,2]
[348431492,1736526647981,-500.0,9.558e-05,2]
[348431493,1736526647990,-500.0,9.558e-05,2]
[348431494,1736526647999,-557.88,9.558e-05,2]
[348431495,1736526648009,-500.0,9.558e-05,2]
[348431496,1736526648018,-526.97,9.558e-05,2]
[348431497,1736526648027,-719.27,9.558e-05,2]
[348431498,1736526648036,-5338.36,9.558e-05,2]
[348431499,1736526648045,-923.88,9.558e-05,2]
[348431500,1736526648055,-500.0,9.558e-05,2]
[348431501,1736526648064,-500.0,9.558e-05,2]
[348431502,1736526648073,-2088.33,9.558e-05,2]
[348431503,1736526648082,-505.57,9.558e-05,2]
[348431504,1736526648094,-611.37,9.558e-05,2]
[348431505,1736526648103,-3152.2,9.558e-05,2]
[348431506,1736526648113,-1112.14,9.558e-05,2]
[348431507,1736526648122,-827.89,9.558e-05,2]
[348431508,1736526648134,-1072.69,9.558e-05,2]
[348431509,1736526648143,-1041.01,9.558e-05,2]
[348431510,1736526648153,-1604.26,9.558e-05,2]
[348431511,1736526648162,-349.87564315,9.558e-05,2]
[348431512,1736526648172,-500.0,9.558e-05,2]
[348431513,1736526648181,-500.0,9.558e-05,2]
[348431514,1736526648191,-1463.44,9.558e-05,2]
[348431515,1736526648200,-570.12,9.558e-05,2]
[348431516,1736526648210,-500.0,9.558e-05,2]
[348431517,1736526648219,-500.0,9.558e-05,2]
[348431518,1736526648228,-1289.09,9.558e-05,2]
[348431519,1736526648238,-757.31,9.558e-05,2]
[348431520,1736526648247,-500.0,9.558e-05,2]
[348431521,1736526648256,-500.0,9.558e-05,2]
[348431522,1736526648267,-3061.99,9.558e-05,2]
[348431523,1736526648277,-500.0,9.558e-05,2]
[348431524,1736526648286,-500.0,9.558e-05,2]
[348431525,1736526648297,-822.45,9.558e-05,2]
[348431526,1736526648307,-500.0,9.558e-05,2]
[348431527,1736526648317,-1549.28,9.558e-05,2]
[348431528,1736526648326,-500.0,9.558e-05,2]
[348431529,1736526648335,-545.28,9.558e-05,2]
[348431530,1736526648346,-811.34,9.558e-05,2]
[348431531,1736526648355,-248.42354454,9.558e-05,2]
[348431532,1736526648365,-566.09,9.558e-05,2]
[348431533,1736526648376,-500.0,9.558e-05,2]
[348431534,1736526648386,-706.94,9.558e-05,2]
[348431535,1736526648396,-819.27,9.558e-05,2]
[348431536,1736526648407,-500.0,9.558e-05,2]
[348431537,1736526648417,-806.89,9.559e-05,2]
[348431538,1736526648428,-1200.4,9.559e-05,2]
[348431539,1736526648438,-1640.16,9.559e-05,2]
[348431540,1736526648448,-1037.43,9.559e-05,2]
[348431541,1736526648458,-1313.83,9.559e-05,2]
[348431542,1736526648468,-1223.5,9.559e-05,2]
[348431543,1736526648478,-613.72,9.559e-05,2]
[348431544,1736526648488,-156.49173984,9.559e-05,2]
[348431545,1736526648843,-2929.39826016,9.559e-05,2]
[348431546,1736526648853,-250.49970847,9.559e-05,2]
[348431547,1736526648865,-297.04429955,9.559e-05,2]
[348431548,1736526648886,-3524.58599198,9.559e-05,2]
[348431549,1736526648896,-1716.51,9.559e-05,2]
[348431550,1736526648906,-1122.23,9.559e-05,2]
[348431551,1736526648916,-1628.58,9.559e-05,2]
[348431552,1736526648926,-733.35,9.559e-05,2]
[348431553,1736526648936,-2642.39,9.559e-05,2]
[348431554,1736526648946,-1715.76,9.559e-05,2]
[348431555,1736526648956,-1004.31582029,9.563e-05,2]
[348431556,1736526648968,-1522.63417971,9.563e-05,2]
[348431557,1736526648978,-1747.06,9.563e-05,2]
[348431558,1736526648988,-500.0,9.563e-05,2]
[348431559,1736526648998,-974.64,9.563e-05,2]
[348431560,1736526649008,-2530.3,9.563e-05,2]
[348431561,1736526649018,-1009.12,9.563e-05,2]
[348431562,1736526649029,-500.0,9.563e-05,2]
[348431563,1736526649039,-675.47,9.57e-05,2]
[348431564,1736526649049,-791.43,9.57e-05,2]
[348431565,1736526649059,-500.0,9.57e-05,2]
[348431566,1736526649069,-500.0,9.57e-05,2]
[348431567,1736526649078,-500.0,9.57e-05,2]
[348431568,1736526649088,-917.67,9.57e-05,2]
[348431569,1736526649098,-500.0,9.57e-05,2]
[348431570,1736526649108,-527.31,9.57e-05,2]
[348431571,1736526649118,-500.0,9.57e-05,2]
[348431572,1736526649130,-500.0,9.57e-05,2]
[348431573,1736526649140,-738.08,9.57e-05,2]
[348431574,1736526649150,-888.17,9.57e-05,2]
[348431575,1736526649160,-750.01,9.57e-05,2]
[348431576,1736526649170,-913.7,9.57e-05,2]
[348431577,1736526649180,-500.0,9.57e-05,2]
[348431578,1736526649190,-775.46,9.57e-05,2]
[348431579,1736526649199,-2617.15,9.57e-05,2]
[348431580,1736526649209,-707.41,9.57e-05,2]
[348431581,1736526649219,-2140.32,9.57e-05,2]
[348431582,1736526649228,-5814.43,9.57e-05,2]
[348431583,1736526649238,-789.55,9.57e-05,2]
[348431584,1736526649249,-500.0,9.57e-05,2]
[348431585,1736526649260,-1360.74,9.57e-05,2]
[348431586,1736526649270,-1563.64,9.57e-05,2]
[348431587,1736526649280,-3003.12,9.57e-05,2]
[348431588,1736526649289,-986.0,9.57e-05,2]
[348431589,1736526649299,-578.13,9.57e-05,2]
[348431590,1736526649309,-803.09,9.57e-05,2]
[348431591,1736526649319,-500.0,9.57e-05,2]
[348431592,1736526649329,-1747.62,9.57e-05,2]
[348431593,1736526649339,-1019.51,9.571e-05,2]
[348431594,1736526649349,-1063.42,9.571e-05,2]
[348431595,1736526649359,-742.49,9.571e-05,2]
[348431596,1736526649369,-500.0,9.571e-05,2]
[348431597,1736526649380,-500.0,9.571e-05,2]
[348431598,1736526649390,-522.95,9.571e-05,2]
[348431599,1736526649400,-652.08,9.571e-05,2]
[348431600,1736526649410,-500.0,9.571e-05,2]
[348431601,1736526649420,-500.0,9.571e-05,2]
[348431602,1736526649430,-728.91,9.571e-05,2]
[348431603,1736526649439,-500.0,9.571e-05,2]
[348431604,1736526649449,-3107.82,9.571e-05,2]
[348431605,1736526649460,-1782.93,9.571e-05,2]
[348431606,1736526649470,-4464.57,9.571e-05,2]
[348431607,1736526649481,-4547.62,9.571e-05,2]
[348431608,1736526649492,-500.0,9.571e-05,2]
[348431609,1736526649502,-1997.09,9.571e-05,2]
[348431610,1736526649513,-1546.73,9.572e-05,2]
[348431611,1736526649523,-10869.85,9.589e-05,2]
[348431612,1736526649533,-1000.0,9.621e-05,2]
[348431613,1736526649542,-500.0,9.644e-05,2]
[348431614,1736526649553,-1212.64,9.671e-05,2]
[348431615,1736526649562,-770.07,9.671e-05,2]
[348431616,1736526649574,-658.36,9.671e-05,2]
[348431617,1736526649585,-524.68,9.671e-05,2]
[348431618,1736526649596,-1279.37,9.671e-05,2]
[348431619,1736526649606,-744.14,9.671e-05,2]
[348431620,1736526649616,-706.63,9.671e-05,2]
[348431621,1736526649628,-755.51,9.671e-05,2]
[348431622,1736526649637,-500.0,9.671e-05,2]
[348431623,1736526649648,-500.0,9.671e-05,2]
[348431624,1736526649659,-500.0,9.671e-05,2]
[348431625,1736526649669,-715.27,9.671e-05,2]
[348431626,1736526649679,-607.75,9.671e-05,2]
[348431627,1736526649689,-734.44,9.671e-05,2]
[348431628,1736526649699,-887.0,9.671e-05,2]
[348431629,1736526649709,-724.8,9.671e-05,2]
[348431630,1736526649718,-720.47,9.671e-05,2]
[348431631,1736526649728,-1268.56,9.671e-05,2]
[348431632,1736526649738,-500.0,9.671e-05,2]
[348431633,1736526649747,-825.08,9.671e-05,2]
[348431634,1736526649757,-2668.86,9.671e-05,2]
[348431635,1736526649768,-559.8,9.671e-05,2]
[348431636,1736526649779,-500.0,9.671e-05,2]
[348431637,1736526649788,-881.05,9.671e-05,2]
[348431638,1736526649798,-1278.24,9.671e-05,2]
[348431639,1736526649808,-500.0,9.671e-05,2]
[348431640,1736526649818,-766.09,9.671e-05,2]
[348431641,1736526649828,-500.0,9.671e-05,2]
[348431642,1736526649838,-665.06,9.671e-05,2]
[348431643,1736526649847,-977.48,9.671e-05,2]
[348431644,1736526649857,-1177.722205,9.671e-05,2]
[348431645,1736526649867,-777.07,9.671e-05,2]
[348431646,1736526649877,-500.0,9.671e-05,2]
[348431647,1736526649886,-1242.969586,9.671e-05,2]
[348431648,1736526649896,-877.49,9.671e-05,2]
[348431649,1736526649905,-3881.78,9.671e-05,2]
[348431650,1736526649915,-627.41,9.671e-05,2]
[348431651,1736526649925,-947.62,9.671e-05,2]
[348431652,1736526649934,-749.46,9.671e-05,2]
[348431653,1736526649944,-720.66,9.671e-05,2]
[348431654,1736526649953,-516.68,9.671e-05,2]
[348431655,1736526649963,-535.15,9.671e-05,2]
[348431656,1736526649973,-1476.38,9.671e-05,2]
[348431657,1736526649983,-638.57,9.671e-05,2]
[348431658,1736526649996,-598.07,9.671e-05,2]
[348431659,1736526650005,-722.91,9.671e-05,2]
[348431660,1736526650015,-585.93,9.671e-05,2]
[348431661,1736526650025,-1046.0,9.671e-05,2]
[348431662,1736526650035,-500.0,9.671e-05,2]
[348431663,1736526650045,-664.5,9.671e-05,2]
[348431664,1736526650055,-3409.85,9.671e-05,2]
[348431665,1736526650066,-980.89,9.671e-05,2]
[348431666,1736526650076,-1013.14,9.671e-05,2]
[348431667,1736526650087,-834.53,9.671e-05,2]
[348431668,1736526650097,-2944.52,9.671e-05,2]
[348431669,1736526650107,-834.57,9.671e-05,2]
[348431670,1736526650117,-4035.09,9.671e-05,2]
[348431671,1736526650127,-572.76,9.671e-05,2]
[348431672,1736526650137,-1109.03,9.671e-05,2]
[348431673,1736526650147,-500.0,9.671e-05,2]
[348431674,1736526650156,-500.0,9.671e-05,2]
[348431675,1736526650166,-531.36,9.671e-05,2]
[348431676,1736526650176,-671.78,9.671e-05,2]
[348431677,1736526650185,-3389.47,9.671e-05,2]
[348431678,1736526650196,-500.0,9.671e-05,2]
[348431679,1736526650205,-3432.27,9.671e-05,2]
[348431680,1736526650215,-500.0,9.672e-05,2]
[348431681,1736526650225,-500.0,9.672e-05,2]
[348431682,1736526650234,-500.0,9.672e-05,2]
[348431683,1736526650244,-500.0,9.672e-05,2]
[348431684,1736526650254,-500.0,9.672e-05,2]
[348431685,1736526650264,-514.46013636,9.672e-05,2]
[348431686,1736526650275,-500.0,9.672e-05,2]
[348431687,1736526650284,-542.51,9.672e-05,2]
[348431688,1736526650294,-888.23,9.672e-05,2]
[348431689,1736526650304,-599.78,9.672e-05,2]
[348431690,1736526650314,-500.0,9.672e-05,2]
[348431691,1736526650324,-500.29,9.672e-05,2]
[348431692,1736526650334,-500.0,9.672e-05,2]
[348431693,1736526650343,-1058.61,9.672e-05,2]
[348431694,1736526650353,-700.44,9.672e-05,2]
[348431695,1736526650362,-905.71,9.672e-05,2]
[348431696,1736526650372,-500.0,9.672e-05,2]
[348431697,1736526650383,-1172.36,9.672e-05,2]
[348431698,1736526650392,-500.0,9.672e-05,2]
[348431699,1736526650402,-611.14,9.672e-05,2]
[348431700,1736526650411,-500.0,9.672e-05,2]
[348431701,1736526650421,-780.83,9.672e-05,2]
[348431702,1736526650430,-500.0,9.672e-05,2]
[348431703,1736526650440,-500.0,9.672e-05,2]
[348431704,1736526650450,-500.0,9.683e-05,2]
[348431705,1736526650459,-1600.0,9.7e-05,3]
[348431706,1736526650469,-30000.0,9.745e-05,2]
[348431707,1736526650480,-2400.0,9.8e-05,3]
[348431708,1736526650489,-500.0,9.831e-05,2]
[348431709,1736526650500,-231.27296296,9.831e-05,2]
[348431710,1736526650509,-500.0,9.831e-05,2]
[348431711,1736526650518,-500.0,9.831e-05,2]
[348431712,1736526650528,-500.0,9.831e-05,2]
[348431713,1736526650537,-1284.08,9.831e-05,2]
[348431714,1736526650547,-500.0,9.831e-05,2]
[348431715,1736526650557,-519.36215827,9.831e-05,2]
[348431716,1736526650567,-500.0,9.831e-05,2]
[348431717,1736526650580,-500.0,9.831e-05,2]
[348431718,1736526650591,-500.0,9.831e-05,2]
[348431719,1736526650600,-500.0,9.831e-05,2]
[348431720,1736526650610,-500.0,9.831e-05,2]
[348431721,1736526650620,-500.0,9.831e-05,2]
[348431722,1736526650631,-612.15254192,9.831e-05,2]
[348431723,1736526650640,-1209.53,9.831e-05,2]
[348431724,1736526650650,-500.0,9.831e-05,2]
[348431725,1736526650659,-500.0,9.831e-05,2]
[348431726,1736526650669,-500.0,9.831e-05,2]
[348431727,1736526650678,-500.0,9.831e-05,2]
[348431728,1736526650688,-821.67,9.831e-05,2]
[348431729,1736526650697,-905.74,9.831e-05,2]
[348431730,1736526650706,-500.0,9.831e-05,2]
[348431731,1736526650716,-1093.48,9.831e-05,2]
[348431732,1736526650726,-1575.75,9.831e-05,2]
[348431733,1736526650735,-500.0,9.831e-05,2]
[348431734,1736526650745,-1869.87,9.831e-05,2]
[348431735,1736526650755,-500.0,9.831e-05,2]
[348431736,1736526650766,-1761.29,9.831e-05,2]
[348431737,1736526650776,-500.0,9.831e-05,2]
[348431738,1736526650786,-500.0,9.831e-05,2]
[348431739,1736526650796,-4066.7,9.831e-05,2]
[348431740,1736526650805,-7420.1,9.831e-05,2]
[348431741,1736526650815,-564.67,9.831e-05,2]
[348431742,1736526650824,-614.37,9.831e-05,2]
[348431743,1736526650834,-1021.14,9.831e-05,2]
[348431744,1736526650843,-755.52,9.831e-05,2]
[348431745,1736526650853,-500.0,9.831e-05,2]
[348431746,1736526650862,-500.0,9.831e-05,2]
[348431747,1736526650872,-950.25,9.831e-05,2]
[348431748,1736526650883,-1213.58,9.831e-05,2]
[348431749,1736526650893,-1062.5,9.831e-05,2]
[348431750,1736526650903,-958.92,9.831e-05,2]
[348431751,1736526650914,-500.0,9.831e-05,2]
[348431752,1736526650924,-550.55,9.831e-05,2]
[348431753,1736526650935,-2093.46,9.831e-05,2]
[348431754,1736526650945,-500.0,9.831e-05,2]
[348431755,1736526650955,-756.62,9.831e-05,2]
[348431756,1736526650966,-500.0,9.831e-05,2]
[348431757,1736526650977,-1566.21,9.831e-05,2]
[348431758,1736526651201,-856.13,9.831e-05,2]
[348431759,1736526651213,-889.19,9.831e-05,2]
[348431760,1736526651223,-1060.71,9.831e-05,2]
[348431761,1736526651232,-1309.98,9.831e-05,2]
[348431762,1736526651242,-1156.72,9.831e-05,2]
[348431763,1736526651251,-500.0,9.831e-05,2]
[348431764,1736526651261,-1405.93,9.831e-05,2]
[348431765,1736526651270,-332.30185545,9.831e-05,2]
[348431766,1736526651279,-500.0,9.832e-05,2]
[348431767,1736526651289,-632.36,9.832e-05,2]
[348431768,1736526651299,-721.23,9.832e-05,2]
[348431769,1736526651308,-616.81,9.832e-05,2]
[348431770,1736526651318,-500.0,9.832e-05,2]
[348431771,1736526651327,-684.39,9.832e-05,2]
[348431772,1736526651337,-500.0,9.832e-05,2]
[348431773,1736526651347,-355.87925391,9.832e-05,2]
[348431774,1736526651362,-144.12074609,9.832e-05,2]
[348431775,1736526651372,-572.92,9.832e-05,2]
[348431776,1736526651383,-500.0,9.832e-05,2]
[348431777,1736526651393,-722.0,9.832e-05,2]
[348431778,1736526651403,-500.0,9.832e-05,2]
[348431779,1736526651413,-893.13,9.832e-05,2]
[348431780,1736526651423,-500.0,9.832e-05,2]
[348431781,1736526651432,-626.44,9.832e-05,2]
[348431782,1736526651442,-709.15,9.832e-05,2]
[348431783,1736526651451,-500.0,9.832e-05,2]
[348431784,1736526651461,-621.71,9.832e-05,2]
[348431785,1736526651470,-500.0,9.832e-05,2]
[348431786,1736526651479,-500.0,9.832e-05,2]
[348431787,1736526651489,-500.0,9.832e-05,2]
[348431788,1736526651497,-500.0,9.832e-05,2]
[348431789,1736526651507,-260.60211428,9.832e-05,2]
[348431790,1736526651517,-500.0,9.832e-05,2]
[348431791,1736526651526,-557.88,9.832e-05,2]
[348431792,1736526651535,-500.0,9.832e-05,2]
[348431793,1736526651544,-526.97,9.832e-05,2]
[348431794,1736526651554,-719.27,9.832e-05,2]
[348431795,1736526651563,-5338.36,9.832e-05,2]
[348431796,1736526651575,-923.88,9.832e-05,2]
[348431797,1736526651584,-500.0,9.832e-05,2]
[348431798,1736526651593,-500.0,9.832e-05,2]
[348431799,1736526651603,-2088.33,9.832e-05,2]
[348431800,1736526651613,-505.57,9.832e-05,2]
[348431801,1736526651622,-611.37,9.832e-05,2]
[348431802,1736526651634,-1112.14,9.832e-05,2]
[348431803,1736526651643,-3152.2,9.832e-05,2]
[348431804,1736526651653,-827.89,9.832e-05,2]
[348431805,1736526651663,-1072.69,9.832e-05,2]
[348431806,1736526651673,-1041.01,9.832e-05,2]
[348431807,1736526651683,-1604.26,9.832e-05,2]
[348431808,1736526651693,-500.0,9.832e-05,2]
[348431809,1736526651703,-500.0,9.832e-05,2]
[348431810,1736526651713,-1463.44,9.832e-05,2]
[348431811,1736526651723,-570.12,9.832e-05,2]
[348431812,1736526651733,-500.0,9.832e-05,2]
[348431813,1736526651744,-500.0,9.832e-05,2]
[348431814,1736526651753,-1289.09,9.832e-05,2]
[348431815,1736526651764,-757.31,9.832e-05,2]
[348431816,1736526651775,-500.0,9.832e-05,2]
[348431817,1736526651785,-500.0,9.832e-05,2]
[348431818,1736526651796,-3061.99,9.832e-05,2]
[348431819,1736526651805,-500.0,9.832e-05,2]
[348431820,1736526651816,-822.45,9.832e-05,2]
[348431821,1736526651826,-183.47169396,9.832e-05,2]
[348431822,1736526651836,-1549.28,9.832e-05,2]
[348431823,1736526651846,-500.0,9.832e-05,2]
[348431824,1736526651855,-545.28,9.832e-05,2]
[348431825,1736526651865,-811.34,9.832e-05,2]
[348431826,1736526651876,-566.09,9.832e-05,2]
[348431827,1736526651890,-706.94,9.832e-05,2]
[348431828,1736526651899,-819.27,9.832e-05,2]
[348431829,1736526651909,-500.0,9.832e-05,2]
[348431830,1736526651918,-806.89,9.833e-05,2]
[348431831,1736526651928,-1200.4,9.833e-05,2]
[348431832,1736526651937,-1640.16,9.833e-05,2]
[348431833,1736526651947,-1037.43,9.833e-05,2]
[348431834,1736526651957,-1313.83,9.833e-05,2]
[348431835,1736526651966,-1223.5,9.833e-05,2]
[348431836,1736526651975,-613.72,9.833e-05,2]
[348431837,1736526651985,-3085.89,9.833e-05,2]
[348431838,1736526651995,-4072.13,9.833e-05,2]
[348431839,1736526652004,-1716.51,9.833e-05,2]
[348431840,1736526652013,-1122.23,9.833e-05,2]
[348431841,1736526652025,-1628.58,9.833e-05,2]
[348431842,1736526652037,-1546.73,9.833e-05,2]
[348431843,1736526652047,-733.35,9.833e-05,2]
[348431844,1736526652057,-2642.39,9.833e-05,2]